bitfinex-derivatives/quotes_SOLF0:USTF0_20241215
["timestamp","ask_amount","ask_price","bid_price","bid_amount"]
[1734245143150,6.35168279,219.24,219.17,6.35168279]
[1734245143353,2.2813,219.23,219.19,2.2817]
[1734245146959,13.69,219.43,219.19,6.35168279]
[1734245147256,13.69,219.43,219.21,6.35168279]
[1734245147257,6.35168279,219.27,219.21,6.35168279]
[1734245147459,8.39168279,219.27,219.21,6.35168279]
[1734245148055,10.67258279,219.27,219.21,8.63308279]
[1734245148252,6.35168279,219.25,219.17,2.04]
[1734245148556,6.35168279,219.23,219.17,6.35168279]
[1734245148749,10.67308279,219.23,219.17,8.63348279]
[1734245148950,8.39168279,219.23,219.17,8.63348279]
[1734245149150,2.04,219.23,219.19,6.35168279]
[1734245150257,2.04,219.23,219.19,8.63338279]
[1734245152857,10.67298279,219.23,219.14,5.4173809]
[1734245153057,8.39168279,219.23,219.16,6.35168279]
[1734245154157,8.39168279,219.23,219.14,5.4173809]
[1734245154457,2.2815,219.22,219.16,2.282]
[1734245154658,8.39168279,219.23,219.16,2.282]
[1734245155261,2.2817,219.2,219.14,14.05126369]
[1734245155564,2.04,219.19,219.14,14.05126369]
[1734245155765,2.04,219.19,219.14,5.4173809]
[1734245155766,8.39168279,219.19,219.14,5.4173809]
[1734245156058,8.39168279,219.19,219.05,0.23271]
[1734245156059,6.35168279,219.17,219.1,6.35168279]
[1734245157564,2.282,219.16,219.1,8.63428279]
[1734245157764,2.04,219.15,219.1,8.63428279]
[1734245158762,2.04,219.15,219.12,5.44746307]
[1734245162367,2.04,219.15,219.08,2.2829]
[1734245162667,6.35168279,219.13,219.06,6.35168279]
[1734245162869,2.2825,219.12,219.06,6.35168279]
[1734245163061,2.04,219.11,219.07,3.22590227]
[1734245163261,2.04,219.11,219.06,8.63468279]
[1734245164266,2.04,219.11,219.07,2.2829]
[1734245165073,2.04,219.12,219.08,8.63458279]
[1734245165273,2.04,219.12,219.08,14.13077335]
[1734245167866,2.04,219.12,219.09,2.2827]
[1734245173978,2.04,219.12,219.08,5.51781566]
[1734245173979,4.3225,219.12,219.08,5.51781566]
[1734245175677,2.04,219.12,219.08,5.51781566]
[1734245176678,2.04,219.12,219.08,7.80071566]
[1734245176882,4.3225,219.12,219.08,5.51781566]
[1734245177781,2.04,219.12,219.08,5.51781566]
[1734245177979,2.04,219.12,219.08,11.86949845]
[1734245178879,2.04,219.12,219.1,2.2827]
[1734245179083,2.02,219.15,219.08,11.86949845]
[1734245179280,2.02,219.16,219.1,6.35168279]
[1734245180383,2.02,219.16,219.12,2.2824]
[1734245180978,1.4232,219.19,219.1,6.35168279]
[1734245181177,2.02,219.18,219.13,2.2823]
[1734245182185,2.02,219.18,219.14,2.2822]
[1734245186495,2.02,219.18,219.17,2.2819]
[1734245186791,8.37168279,219.21,219.17,2.2819]
[1734245187492,2.2815,219.22,219.11,2.02]
[1734245187693,2.02,219.23,219.18,6.35168279]
[1734245188490,2.02,219.23,219.2,2.2816]
[1734245188687,2.02,219.24,219.2,2.2816]
[1734245189092,2.02,219.24,219.2,6.35168279]
[1734245190183,1.5122,219.38,219.2,6.35168279]
[1734245190184,1.3952,219.37,219.2,6.35168279]
[1734245190389,6.35168279,219.28,219.2,6.35168279]
[1734245190695,6.35168279,219.28,219.24,2.2812]
[1734245190898,2.02,219.27,219.24,2.2812]
[1734245191897,2.2807,219.3,219.24,2.2812]
[1734245192091,8.37168279,219.29,219.24,2.2812]
[1734245193498,2.02,219.29,219.24,6.35168279]
[1734245193802,6.35168279,219.3,219.24,6.35168279]
[1734245194098,2.02,219.31,219.26,6.35168279]
[1734245194596,2.02,219.31,219.27,2.2809]
[1734245197292,6.35168279,219.35,219.28,6.35168279]
[1734245197493,2.0,219.34,219.28,6.35168279]
[1734245197705,6.35168279,219.35,219.24,4.355]
[1734245197706,2.0,219.35,219.3,6.35168279]
[1734245198699,2.0,219.35,219.31,2.2805]
[1734245200104,2.0,219.36,219.33,2.2803]
[1734245202098,2.0,219.36,219.33,8.63198279]
[1734245203293,2.0,219.36,219.31,8.63208279]
[1734245203494,2.2799,219.37,219.31,8.63208279]
[1734245203698,2.2799,219.37,219.31,6.35168279]
[1734245203909,2.2799,219.37,219.32,2.2804]
[1734245205000,8.35168279,219.38,219.33,8.63198279]
[1734245205205,2.0,219.38,219.33,8.63198279]
[1734245207101,2.0,219.38,219.34,2.2802]
[1734245207596,2.0,219.38,219.33,6.35168279]
[1734245207999,6.35168279,219.36,219.28,5.4876885]
[1734245208197,6.35168279,219.36,219.29,6.35168279]
[1734245208606,2.2802,219.35,219.29,6.35168279]
[1734245208805,2.0,219.34,219.29,6.35168279]
[1734245209201,2.0,219.34,219.29,8.63238279]
[1734245211505,2.0,219.34,219.3,2.2806]
[1734245211698,2.0,219.34,219.31,6.35168279]
[1734245211897,2.0,219.37,219.31,6.35168279]
[1734245212099,2.0,219.37,219.32,2.2804]
[1734245212506,2.0,219.37,219.33,6.35168279]
[1734245212706,2.0,219.37,219.32,2.2804]
[1734245213703,2.0,219.37,219.31,6.35168279]
[1734245213903,6.35168279,219.34,219.28,5.4876885]
[1734245214205,4.2803,219.33,219.28,11.83937129]
[1734245215700,4.2803,219.33,219.28,14.12007129]
[1734245217411,4.2803,219.33,219.28,8.63238279]
[1734245219410,2.0,219.33,219.3,5.4251672]
[1734245220207,2.0,219.33,219.28,6.35168279]
[1734245220412,6.35168279,219.3,219.24,6.35168279]
[1734245220607,2.0,219.29,219.24,6.35168279]
[1734245220803,2.2808,219.28,219.24,6.35168279]
[1734245221107,2.2808,219.28,219.23,2.2812]
[1734245221809,2.0,219.29,219.25,2.2811]
[1734245222008,2.0,219.29,219.26,6.35168279]
[1734245222405,2.0,219.29,219.24,11.7448426]
[1734245223611,4.2807,219.29,219.24,14.0260426]
[1734245224411,2.2808,219.28,219.24,11.7448426]
[1734245224609,8.35168279,219.29,219.24,5.39315981]
[1734245224814,6.35168279,219.27,219.2,6.35168279]
[1734245225014,2.2812,219.24,219.2,6.35168279]
[1734245225213,4.2812,219.24,219.2,6.35168279]
[1734245226513,4.2812,219.24,219.2,11.78630378]
[1734245228012,2.0,219.24,219.2,14.06780378]
[1734245228316,2.0,219.24,219.22,6.35168279]
[1734245229618,2.0,219.24,219.22,8.63308279]
[1734245230618,4.281,219.27,219.22,8.63308279]
[1734245231018,2.0,219.27,219.22,8.63308279]
[1734245232622,4.2809,219.27,219.22,8.63308279]
[1734245233419,2.2809,219.27,219.22,8.63308279]
[1734245235023,2.2809,219.27,219.22,6.35168279]
[1734245235224,2.2809,219.27,219.23,2.2813]
[1734245235623,2.281,219.26,219.22,2.2814]
[1734245235921,2.281,219.26,219.22,8.63308279]
[1734245238024,4.2811,219.25,219.2,7.71612099]
[1734245238223,2.0,219.25,219.2,7.71612099]
[1734245239625,2.0,219.25,219.2,2.2815]
[1734245239626,2.2812,219.24,219.2,2.2815]
[1734245240024,2.2812,219.24,219.19,8.63338279]
[1734245241225,2.0,219.25,219.21,8.63318279]
[1734245242424,2.0,219.25,219.22,2.2814]
[1734245244529,13.69,219.47,219.23,6.35168279]
[1734245244731,2.2804,219.32,219.27,8.63248279]
[1734245247228,2.0,219.31,219.27,8.63248279]
[1734245247826,2.2804,219.32,219.27,8.63248279]
[1734245248023,2.0,219.31,219.27,8.63248279]
[1734245250227,4.2805,219.31,219.27,6.35168279]
[1734245250424,8.35168279,219.31,219.25,6.35168279]
[1734245250626,6.35168279,219.29,219.23,6.35168279]
[1734245251631,2.2809,219.27,219.23,6.35168279]
[1734245251833,2.0,219.26,219.23,6.35168279]
[1734245252132,2.0,219.26,219.25,6.35168279]
[1734245252333,2.2806,219.3,219.25,6.35168279]
[1734245252635,2.0,219.32,219.27,6.35168279]
[1734245252838,2.0,219.33,219.27,6.35168279]
[1734245253428,4.2804,219.33,219.28,2.2808]
[1734245253727,2.0,219.33,219.27,6.35168279]
[1734245254732,2.2804,219.32,219.27,8.63258279]
[1734245256427,4.2804,219.32,219.27,8.63258279]
[1734245259239,4.2804,219.32,219.28,2.2808]
[1734245259936,2.2804,219.32,219.28,2.2808]
[1734245260138,2.0,219.34,219.31,6.35168279]
[1734245261842,2.9864,219.41,219.31,6.35168279]
[1734245262147,2.2799,219.37,219.32,2.2803]
[1734245262638,2.2799,219.37,219.33,8.63198279]
[1734245262944,2.2799,219.37,219.33,6.35168279]
[1734245264845,8.35168279,219.36,219.3,2.2805]
[1734245265143,2.0,219.35,219.29,6.35168279]
[1734245266742,4.2801,219.35,219.31,2.2805]
[1734245268641,4.2801,219.35,219.31,8.63218279]
[1734245271551,2.2801,219.35,219.31,8.63218279]
[1734245273449,4.28,219.36,219.31,8.63218279]
[1734245277156,4.28,219.36,219.31,6.35168279]
[1734245277455,2.0,219.36,219.31,6.35168279]
[1734245278053,2.0,219.36,219.33,8.63188279]
[1734245279453,2.0,219.36,219.25,1.4036]
[1734245279656,2.0,219.36,219.3,6.35168279]
[1734245280454,2.0,219.36,219.25,3.4036]
[1734245280455,6.35168279,219.33,219.25,1.4036]
[1734245280651,2.0,219.32,219.26,3.22266862]
[1734245280856,2.0,219.32,219.25,6.35168279]
[1734245281051,2.0,219.32,219.24,5.58611562]
[1734245281052,6.35168279,219.31,219.24,5.58611562]
[1734245281254,6.35168279,219.29,219.24,5.58611562]
[1734245281459,6.35168279,219.27,219.19,1.4196]
[1734245281662,2.0,219.26,219.22,6.35168279]
[1734245281865,2.0,219.27,219.22,6.35168279]
[1734245282163,2.0,219.27,219.22,8.63308279]
[1734245282558,13.69,219.46,219.26,6.35168279]
[1734245282559,2.0,219.31,219.26,6.35168279]
[1734245283558,4.2805,219.31,219.26,6.35168279]
[1734245285556,8.35168279,219.31,219.24,6.35168279]
[1734245285863,6.35168279,219.29,219.24,6.35168279]
[1734245286659,6.35168279,219.29,219.22,8.63308279]
[1734245286660,2.2809,219.27,219.22,8.63308279]
[1734245286861,4.2809,219.27,219.22,8.63308279]
[1734245287664,2.2811,219.25,219.22,6.35168279]
[1734245287857,6.35168279,219.25,219.19,6.35168279]
[1734245288057,6.35168279,219.25,219.2,3.2273491]
[1734245288365,2.2815,219.22,219.15,2.282]
[1734245288561,2.0,219.21,219.11,1.517]
[1734245288866,8.35168279,219.21,219.14,6.35168279]
[1734245289060,6.35168279,219.19,219.12,6.35168279]
[1734245289769,6.35168279,219.19,219.14,5.47012762]
[1734245290559,2.2819,219.17,219.14,5.47012762]
[1734245290763,2.0,219.16,218.91,176.79391214]
[1734245290959,2.0,219.15,219.08,3.2231678]
[1734245291161,2.0,219.14,219.09,6.35168279]
[1734245291768,2.2824,219.12,219.07,6.35168279]
[1734245293761,6.35168279,219.13,219.07,6.35168279]
[1734245293968,4.2823,219.14,219.08,5.57811128]
[1734245294171,4.2823,219.14,219.09,6.35168279]
[1734245294470,2.0,219.14,219.09,6.35168279]
[1734245294873,2.0,219.14,219.08,5.57811128]
[1734245295076,6.35168279,219.13,219.08,11.92979407]
[1734245295464,2.2825,219.12,219.08,11.92979407]
[1734245298765,2.0,219.14,219.06,0.20539]
[1734245298766,6.35168279,219.09,219.06,0.20539]
[1734245298968,2.0,219.08,219.06,0.20539]
[1734245299371,8.63468279,219.07,219.06,0.20539]
[1734245299572,2.0,219.08,219.06,0.20539]
[1734245300670,4.2829,219.08,219.06,0.20539]
[1734245301170,2.0,219.08,219.06,0.20539]
[1734245301370,2.0,219.09,219.06,6.55707279]
[1734245301569,2.0,219.1,219.08,6.35168279]
[1734245301771,2.0,219.12,219.08,6.35168279]
[1734245302074,2.0,219.12,219.08,8.63438279]
[1734245302275,2.0,219.12,219.08,6.35168279]
[1734245302466,4.4287,219.18,219.1,6.35168279]
[1734245302672,4.4287,219.18,219.06,0.20539]
[1734245302673,2.0,219.17,219.12,8.63408279]
[1734245302874,2.0,219.16,219.12,8.63408279]
[1734245304576,2.0,219.16,219.12,6.35168279]
[1734245305878,4.282,219.16,219.12,6.35168279]
[1734245306480,2.0,219.16,219.12,6.35168279]
[1734245306880,2.0,219.16,219.07,3.0644]
[1734245307076,4.2821,219.16,219.11,6.35168279]
[1734245307687,2.0,219.16,219.11,6.35168279]
[1734245307888,2.0,219.16,219.13,6.35168279]
[1734245310685,2.0,219.18,219.13,6.35168279]
[1734245311291,2.0,219.19,219.17,6.35168279]
[1734245311491,2.0,219.2,219.17,6.35168279]
[1734245311690,2.0,219.2,219.17,8.63348279]
[1734245311890,2.0,219.2,219.17,6.35168279]
[1734245312991,2.0,219.2,219.17,8.63348279]
[1734245313183,2.0,219.21,219.17,8.63348279]
[1734245318191,2.0,219.21,219.18,2.2817]
[1734245318587,187.83200499,219.47,219.19,6.35168279]
[1734245318588,2.0,219.27,219.19,6.35168279]
[1734245318792,52.2,219.41,219.22,6.35168279]
[1734245318793,2.0,219.26,219.22,6.35168279]
[1734245319093,2.0,219.27,219.22,6.35168279]
[1734245319791,2.0,219.27,219.22,8.63298279]
[1734245322092,2.0,219.27,219.22,6.35168279]
[1734245322392,2.0,219.27,219.24,6.35168279]
[1734245325493,2.0,219.27,219.22,6.35168279]
[1734245326592,8.35168279,219.27,219.2,8.63308279]
[1734245327695,2.2811,219.25,219.2,8.63308279]
[1734245327900,6.35168279,219.25,219.18,2.2817]
[1734245328095,2.2814,219.22,219.17,6.35168279]
[1734245328295,4.2814,219.22,219.17,6.35168279]
[1734245329197,4.2814,219.22,219.17,8.63348279]
[1734245330601,2.0,219.22,219.19,6.35168279]
[1734245333499,2.0,219.22,219.18,2.2817]
[1734245333696,2.0,219.22,219.19,6.35168279]
[1734245336001,2.0,219.22,219.21,6.35168279]
[1734245336406,2.0,219.26,219.21,6.35168279]
[1734245336604,4.2809,219.26,219.21,8.63308279]
[1734245338005,2.0,219.26,219.22,2.2813]
[1734245341197,2.0,219.26,219.16,2.0]
[1734245341397,9.725396,219.34,219.25,6.35168279]
[1734245341398,2.0,219.28,219.25,6.35168279]
[1734245341603,2.0,219.29,219.25,6.35168279]
[1734245342606,2.0,219.29,219.27,2.2808]
[1734245344609,2.0,219.29,219.27,8.63248279]
[1734245345310,2.0,219.29,219.27,6.35168279]
[1734245345503,2.0,219.29,219.25,6.35168279]
[1734245346607,2.0,219.29,219.25,8.63268279]
[1734245346909,2.0,219.29,219.25,6.35168279]
[1734245348608,2.2807,219.28,219.25,6.35168279]
[1734245351314,2.0,219.29,219.25,6.35168279]
[1734245352710,4.2806,219.29,219.25,8.63268279]
[1734245353509,2.0,219.29,219.15,2.959]
[1734245353816,6.35168279,219.27,219.19,6.35168279]
[1734245354118,2.0,219.29,219.19,6.35168279]
[1734245354119,6.35168279,219.25,219.19,6.35168279]
[1734245354318,1.98,219.24,219.19,11.85944887]
[1734245354716,2.2813,219.23,219.19,14.14104887]
[1734245357619,2.2813,219.23,219.2,6.35168279]
[1734245358922,1.98,219.24,219.15,2.959]
[1734245359115,2.2813,219.22,219.18,6.35168279]
[1734245361118,2.2813,219.22,219.2,6.35168279]
[1734245364427,2.2813,219.22,219.18,11.73635678]
[1734245365424,2.2813,219.22,219.18,14.01805678]
[1734245366630,2.2813,219.22,219.18,7.66637399]
[1734245366930,2.2813,219.22,219.19,6.35168279]
[1734245368733,4.2612,219.24,219.19,8.63328279]
[1734245372925,2.2812,219.23,219.19,8.63328279]
[1734245373229,8.33168279,219.24,219.18,5.52735372]
[1734245373434,2.2814,219.21,219.18,11.87903651]
[1734245373634,8.33168279,219.24,219.18,11.87903651]
[1734245374636,2.2813,219.22,219.18,14.16073651]
[1734245376839,2.2813,219.22,219.18,8.63338279]
[1734245378039,2.2813,219.22,219.18,14.03308527]
[1734245382038,6.35168279,219.22,219.13,1.4637]
[1734245382240,6.35168279,219.22,219.15,6.35168279]
[1734245382443,6.35168279,219.22,219.13,1.4637]
[1734245382639,6.35168279,219.22,219.15,6.35168279]
[1734245382844,6.35168279,219.2,219.13,7.81538279]
[1734245383043,1.98,219.19,219.13,6.35168279]
[1734245383745,1.98,219.19,219.13,11.89955374]
[1734245384545,6.35168279,219.18,219.13,6.35168279]
[1734245385746,2.282,219.16,219.13,6.35168279]
[1734245385953,6.35168279,219.14,219.04,2.996]
[1734245386247,2.2826,219.1,219.05,9.57749759]
[1734245386446,6.35168279,219.08,219.06,3.2258148]
[1734245386641,1.98,219.07,219.02,6.35168279]
[1734245386837,1.98,219.07,219.03,3.22502719]
[1734245387037,1.98,219.07,219.02,6.35168279]
[1734245387638,4.2629,219.07,219.02,6.35168279]
[1734245388049,4.2629,219.07,219.02,11.96604006]
[1734245390038,2.2832,219.04,218.99,6.35168279]
[1734245390243,1.98,219.03,218.99,6.35168279]
[1734245391642,1.98,219.03,218.98,2.2838]
[1734245391847,1.98,219.03,218.99,6.35168279]
[1734245392247,2.2834,219.02,218.97,6.96863032]
[1734245392441,2.2834,219.02,218.97,13.32031311]
[1734245394151,1.98,219.01,218.97,13.32031311]
[1734245395250,1.98,219.02,218.99,6.35168279]
[1734245395546,1.98,219.03,218.99,6.35168279]
[1734245396152,1.98,219.03,219.01,2.2835]
[1734245396358,1.98,219.03,219.01,6.35168279]
[1734245396650,1.98,219.03,219.0,6.35168279]
[1734245396948,1.98,219.03,219.01,2.2835]
[1734245397156,1.98,219.03,219.02,6.35168279]
[1734245397649,1.98,219.03,219.01,2.2835]
[1734245397847,1.98,219.03,219.02,6.35168279]
[1734245399952,6.35168279,219.07,219.02,6.35168279]
[1734245400153,1.98,219.06,219.02,6.35168279]
[1734245400349,1.98,219.05,219.02,6.35168279]
[1734245400543,1.98,219.05,219.02,8.63508279]
[1734245402247,1.98,219.05,219.03,2.2833]
[1734245402953,1.98,219.05,219.04,8.63488279]
[1734245403752,8.63428279,219.1,219.04,8.63488279]
[1734245403953,1.98,219.09,219.04,8.63488279]
[1734245407754,1.98,219.09,219.05,2.2831]
[1734245407954,1.98,219.08,219.04,6.35168279]
[1734245409147,1.98,219.08,219.05,2.283]
[1734245409546,1.98,219.08,219.04,6.35168279]
[1734245409748,4.2628,219.08,219.03,2.2832]
[1734245409949,1.98,219.08,219.03,2.2832]
[1734245411253,2.2834,219.03,218.97,7.78653032]
[1734245411465,8.33168279,219.02,218.97,5.50263032]
[1734245411671,6.35168279,219.0,218.9,4.362]
[1734245411956,1.4729,219.07,218.9,4.362]
[1734245411957,6.35168279,218.98,218.91,6.35168279]
[1734245412152,1.98,218.97,218.91,6.35168279]
[1734245412654,1.98,218.97,218.92,2.2844]
[1734245413154,1.98,218.97,218.88,5.50841124]
[1734245413356,6.35168279,218.94,218.76,25.33220436]
[1734245413654,6.35168279,218.88,218.81,6.35168279]
[1734245413860,1.98,218.87,218.81,6.35168279]
[1734245414364,6.35168279,218.83,218.66,1.98]
[1734245414664,4.3583,218.96,218.8,6.35168279]
[1734245414665,2.2847,218.9,218.8,6.35168279]
[1734245414857,8.33168279,218.89,218.72,3.513]
[1734245415058,6.35168279,218.87,218.8,6.35168279]
[1734245415252,1.98,218.86,218.79,6.35168279]
[1734245415964,1.98,218.86,218.81,6.35168279]
[1734245416265,1.98,218.85,218.81,6.35168279]
[1734245416763,1.98,218.85,218.83,6.35168279]
[1734245416962,1.98,218.88,218.83,6.35168279]
[1734245417169,1.98,218.88,218.75,7.35885332]
[1734245417170,1.98,218.88,218.77,3.20591117]
[1734245417359,1.98,218.88,218.75,7.35885332]
[1734245417763,1.98,218.88,218.82,6.35168279]
[1734245418162,1.98,218.88,218.75,7.35885332]
[1734245418163,6.35168279,218.87,218.75,7.35885332]
[1734245418366,6.35168279,218.87,218.8,6.35168279]
[1734245419367,6.35168279,218.87,218.81,2.2856]
[1734245419758,6.35168279,218.85,218.75,7.35885332]
[1734245419961,6.35168279,218.85,218.78,6.35168279]
[1734245420162,1.98,218.88,218.75,5.37885332]
[1734245420163,6.35168279,218.87,218.8,6.35168279]
[1734245420565,6.35168279,218.87,218.81,2.2855]
[1734245420958,6.35168279,218.87,218.8,6.35168279]
[1734245421163,6.35168279,218.87,218.75,8.5775405]
[1734245421363,6.35168279,218.87,218.8,6.35168279]
[1734245422462,1.98,218.88,218.82,6.35168279]
[1734245422667,6.35168279,218.89,218.82,8.63698279]
[1734245422868,1.98,218.88,218.82,8.63698279]
[1734245423764,1.98,218.88,218.82,6.35168279]
[1734245424767,6.35168279,218.87,218.8,6.35168279]
[1734245424967,6.35168279,218.87,218.81,2.2854]
[1734245425167,4.2647,218.88,218.81,2.2854]
[1734245425668,4.2647,218.88,218.76,1.98]
[1734245425867,6.35168279,218.87,218.8,8.63718279]
[1734245426271,4.2647,218.88,218.8,8.63718279]
[1734245426464,10.61638279,218.88,218.81,2.2854]
[1734245426970,10.61638279,218.88,218.82,6.35168279]
[1734245427673,10.61638279,218.88,218.81,2.2854]
[1734245428669,2.2848,218.87,218.81,2.2854]
[1734245430076,8.63658279,218.86,218.79,2.2856]
[1734245430572,8.63678279,218.84,218.77,2.2857]
[1734245430777,1.98,218.83,218.77,2.2857]
[1734245431672,8.33168279,218.83,218.76,6.35168279]
[1734245432569,8.33168279,218.83,218.77,2.2857]
[1734245432774,8.33168279,218.83,218.76,6.35168279]
[1734245432972,6.35168279,218.86,218.81,2.2854]
[1734245433178,1.98,218.85,218.81,2.2854]
[1734245434875,1.98,218.85,218.81,2.2853]
[1734245435577,1.98,218.85,218.79,6.35168279]
[1734245436577,1.98,218.85,218.81,2.2854]
[1734245437274,1.98,218.85,218.8,2.2855]
[1734245437869,4.265,218.85,218.8,2.2855]
[1734245438074,1.98,218.85,218.8,2.2855]
[1734245438575,6.35168279,218.84,218.78,5.44615827]
[1734245439675,8.63678279,218.84,218.79,2.2856]
[1734245439877,8.63678279,218.84,218.78,5.44615827]
[1734245440275,8.63678279,218.84,218.78,7.73185827]
[1734245441571,8.63678279,218.84,218.78,5.44615827]
[1734245441774,8.63678279,218.84,218.79,2.2856]
[1734245442380,6.35168279,218.84,218.79,2.2856]
[1734245443376,6.35168279,218.84,218.78,5.44615827]
[1734245444682,8.63678279,218.84,218.79,2.2856]
[1734245448584,2.2852,218.83,218.73,3.20439559]
[1734245448893,2.2852,218.83,218.75,6.35168279]
[1734245449079,6.35168279,218.84,218.78,2.2856]
[1734245449483,6.35168279,218.82,218.78,2.2856]
[1734245449685,2.08,218.81,218.78,2.2856]
[1734245452284,2.08,218.81,218.7,6.33305109]
[1734245452490,6.35168279,218.8,218.75,2.286]
[1734245452986,6.35168279,218.8,218.73,7.81846182]
[1734245453186,6.35168279,218.76,218.69,2.9131]
[1734245453386,2.08,218.75,218.68,38.54297771]
[1734245453586,2.08,218.75,218.7,2.2865]
[1734245453587,4.366,218.75,218.7,2.2865]
[1734245453984,6.35168279,218.74,218.7,2.2865]
[1734245454183,6.35168279,218.74,218.69,2.2866]
[1734245454384,6.35168279,218.74,218.68,0.32258]
[1734245454780,6.35168279,218.74,218.68,8.96096279]
[1734245454981,2.08,218.75,218.7,6.35168279]
[1734245455580,6.35168279,218.78,218.7,6.35168279]
[1734245455783,2.08,218.77,218.72,6.35168279]
[1734245456189,2.08,218.77,218.73,3.22783377]
[1734245456490,2.08,218.77,218.72,8.63788279]
[1734245456691,2.08,218.77,218.73,3.22783313]
[1734245456996,2.08,218.77,218.72,2.2862]
[1734245457194,2.08,218.77,218.73,3.23063855]
[1734245457388,2.08,218.77,218.74,3.23063855]
[1734245457592,2.08,218.77,218.72,8.63788279]
[1734245457792,2.08,218.77,218.73,3.23063754]
[1734245458094,2.08,218.77,218.74,3.23063754]
[1734245458287,2.08,218.77,218.72,6.35168279]
[1734245458592,2.08,218.77,218.73,5.51946181]
[1734245458787,6.35168279,218.78,218.74,3.23326181]
[1734245459095,2.08,218.77,218.75,3.23326181]
[1734245459284,2.08,218.77,218.73,2.2862]
[1734245459487,2.08,218.77,218.74,3.23295476]
[1734245459688,2.08,218.77,218.75,3.23295476]
[1734245459890,2.08,218.78,218.76,3.23278759]
[1734245460086,2.08,218.78,218.74,2.2861]
[1734245460290,2.08,218.78,218.72,6.35168279]
[1734245460291,8.43168279,218.78,218.75,3.23267917]
[1734245460491,8.43168279,218.78,218.72,6.35168279]
[1734245460687,8.43168279,218.78,218.73,3.23274923]
[1734245460893,2.2859,218.77,218.74,3.23282997]
[1734245461191,2.2859,218.77,218.75,3.23282997]
[1734245461387,2.2859,218.77,218.7,6.35168279]
[1734245461594,2.2859,218.77,218.71,5.51882022]
[1734245461788,8.43168279,218.78,218.72,3.23242022]
[1734245462095,8.43168279,218.78,218.73,3.23242022]
[1734245462294,8.43168279,218.78,218.74,3.23242022]
[1734245462595,8.43168279,218.78,218.7,6.35168279]
[1734245462794,8.43168279,218.78,218.71,3.23222661]
[1734245462988,8.43168279,218.78,218.72,3.23222661]
[1734245463193,8.43168279,218.78,218.73,3.23222661]
[1734245463390,8.43168279,218.78,218.7,6.35168279]
[1734245463688,10.71738279,218.78,218.72,2.2863]
[1734245463894,2.08,218.78,218.73,3.2320543]
[1734245464091,2.08,218.78,218.72,6.35168279]
[1734245464092,2.08,218.78,218.74,3.23202334]
[1734245464295,2.08,218.78,218.73,2.2861]
[1734245464492,2.08,218.78,218.74,3.23179176]
[1734245464690,2.08,218.8,218.76,6.35168279]
[1734245464896,2.08,218.8,218.77,3.23143035]
[1734245465093,2.08,218.8,218.78,3.23121322]
[1734245465388,2.08,218.8,218.79,3.23138869]
[1734245465594,2.08,218.8,218.79,3.2313429]
[1734245465790,2.08,218.8,218.79,3.23135075]
[1734245466185,2.08,218.8,218.79,3.23128986]
[1734245466591,2.08,218.8,218.78,2.2856]
[1734245471402,2.08,218.8,218.77,2.2858]
[1734245471598,2.08,218.8,218.78,3.2331992]
[1734245471798,2.08,218.8,218.79,3.2331992]
[1734245471998,2.08,218.8,218.76,6.35168279]
[1734245472206,2.08,218.8,218.77,3.23321111]
[1734245472505,2.08,218.8,218.75,2.2859]
[1734245472693,2.08,218.8,218.76,3.23383055]
[1734245472896,2.08,218.8,218.72,1.4153]
[1734245473092,2.08,218.8,218.74,2.286]
[1734245473398,2.08,218.8,218.75,9.58567428]
[1734245473606,2.08,218.8,218.76,3.23399149]
[1734245473792,2.08,218.8,218.77,3.23398214]
[1734245473997,2.08,218.8,218.76,6.35168279]
[1734245474203,2.08,218.8,218.77,3.23404299]
[1734245474503,2.08,218.8,218.76,6.35168279]
[1734245474803,2.08,218.83,218.78,6.35168279]